[Event "FIDE World Rapid Chess Championship 2021"]
[White "Theodorou, Nikolas"]
[Black "Blanco Acevedo, Cristobal Jose"]
[WhiteFideId "4262875"]
[BlackFideId "3900525"]
[WhiteElo "2559"]
[BlackElo "2289"]
[Result "1-0"]
[Round "01"]
[TimeControl "900+10"]
[Date "2021.12.26"]
[WhiteClock "0:00:42"]
[BlackClock "0:00:11"]

1. d4 {[%clk 0:15:17]}  d5 {[%clk 0:15:14]} 2. c4 {[%clk 0:15:22]}  e6 {[%clk 0:15:21]} 3. Nf3 {[%clk 0:15:26]}  Nf6 {[%clk 0:15:29]} 4. Nc3 {[%clk 0:15:25]}  dxc4 {[%clk 0:15:01]} 5. e3 {[%clk 0:14:54]}  a6 {[%clk 0:13:52]} 6. a4 {[%clk 0:15:01]}  c5 {[%clk 0:13:58]} 7. Bxc4 {[%clk 0:15:07]}  Nc6 {[%clk 0:14:00]} 8. O-O {[%clk 0:15:11]}  Be7 {[%clk 0:14:03]} 9. Qe2 {[%clk 0:14:40]}  cxd4 {[%clk 0:13:46]} 10. Rd1 {[%clk 0:14:42]}  O-O {[%clk 0:13:11]} 11. exd4 {[%clk 0:14:36]}  Nb4 {[%clk 0:12:43]} 12. Bg5 {[%clk 0:14:35]}  h6 {[%clk 0:11:40]} 13. Bh4 {[%clk 0:13:34]}  Nbd5 {[%clk 0:10:31]} 14. Ne5 {[%clk 0:12:53]}  Nxc3 {[%clk 0:08:51]} 15. bxc3 {[%clk 0:13:00]}  Nd5 {[%clk 0:08:53]} 16. Bxe7 {[%clk 0:11:18]}  Qxe7 {[%clk 0:05:55]} 17. Ng6 {[%clk 0:10:08]}  Qf6 {[%clk 0:05:47]} 18. Bxd5 {[%clk 0:08:59]}  Qxg6 {[%clk 0:05:52]} 19. Be4 {[%clk 0:09:05]}  Qg5 {[%clk 0:04:48]} 20. c4 {[%clk 0:08:23]}  Rb8 {[%clk 0:04:33]} 21. Qe3 {[%clk 0:04:54]}  f5 {[%clk 0:02:37]} 22. f4 {[%clk 0:04:24]}  Qf6 {[%clk 0:02:31]} 23. Bf3 {[%clk 0:04:31]}  g5 {[%clk 0:02:29]} 24. Qe5 {[%clk 0:04:08]}  Bd7 {[%clk 0:02:22]} 25. Qxf6 {[%clk 0:03:53]}  Rxf6 {[%clk 0:02:31]} 26. Rdb1 {[%clk 0:03:56]}  b5 {[%clk 0:00:56]} 27. cxb5 {[%clk 0:02:36]}  axb5 {[%clk 0:01:04]} 28. g3 {[%clk 0:02:09]}  gxf4 {[%clk 0:00:48]} 29. gxf4 {[%clk 0:02:17]}  Rg6+ {[%clk 0:00:25]} 30. Kf2 {[%clk 0:02:22]}  Rg7 {[%clk 0:00:27]} 31. Rb4 {[%clk 0:01:12]}  Be8 {[%clk 0:00:23]} 32. Rab1 {[%clk 0:01:14]}  Rc8 {[%clk 0:00:31]} 33. axb5 {[%clk 0:01:08]}  Rc2+ {[%clk 0:00:40]} 34. Ke3 {[%clk 0:01:13]}  Rxh2 {[%clk 0:00:31]} 35. b6 {[%clk 0:01:02]}  Rh3 {[%clk 0:00:23]} 36. b7 {[%clk 0:00:46]}  Rgg3 {[%clk 0:00:11]} 37. Rf1 {[%clk 0:00:42]} 1-0


[Site "http://www.Chess.com"]

[Event "FIDE World Rapid Chess Championship 2021"]
[White "Harsha, Bharathakoti"]
[Black "Mamedov, Rauf"]
[WhiteFideId "5078776"]
[BlackFideId "13401653"]
[WhiteElo "2484"]
[BlackElo "2690"]
[Result "1-0"]
[Round "01"]
[TimeControl "900+10"]
[Date "2021.12.26"]
[WhiteClock "0:01:02"]
[BlackClock "0:01:07"]

1. d4 {[%clk 0:15:16]}  Nf6 {[%clk 0:15:17]} 2. Nf3 {[%clk 0:15:23]}  g6 {[%clk 0:15:24]} 3. g3 {[%clk 0:15:31]}  Bg7 {[%clk 0:15:32]} 4. Bg2 {[%clk 0:15:38]}  O-O {[%clk 0:15:35]} 5. O-O {[%clk 0:15:45]}  d6 {[%clk 0:15:34]} 6. b3 {[%clk 0:15:52]}  b5 {[%clk 0:15:41]} 7. Nbd2 {[%clk 0:15:59]}  Bb7 {[%clk 0:15:48]} 8. c4 {[%clk 0:16:07]}  bxc4 {[%clk 0:15:11]} 9. bxc4 {[%clk 0:16:14]}  Nbd7 {[%clk 0:14:18]} 10. Rb1 {[%clk 0:16:11]}  Rb8 {[%clk 0:14:05]} 11. Qc2 {[%clk 0:16:17]}  c5 {[%clk 0:13:13]} 12. d5 {[%clk 0:15:58]}  Qa5 {[%clk 0:12:44]} 13. Rb5 {[%clk 0:11:52]}  Qc7 {[%clk 0:12:52]} 14. Bb2 {[%clk 0:11:05]}  Nb6 {[%clk 0:11:21]} 15. e4 {[%clk 0:10:10]}  e5 {[%clk 0:09:29]} 16. dxe6 {[%clk 0:10:03]}  fxe6 {[%clk 0:09:38]} 17. e5 {[%clk 0:09:13]}  Ne8 {[%clk 0:09:47]} 18. exd6 {[%clk 0:09:13]}  Nxd6 {[%clk 0:09:54]} 19. Bxg7 {[%clk 0:09:16]}  Kxg7 {[%clk 0:09:23]} 20. Rb3 {[%clk 0:08:37]}  Kg8 {[%clk 0:09:25]} 21. Re1 {[%clk 0:07:25]}  Rbe8 {[%clk 0:09:15]} 22. Rbe3 {[%clk 0:07:19]}  Qf7 {[%clk 0:08:40]} 23. R3e2 {[%clk 0:06:26]}  Qf5 {[%clk 0:08:37]} 24. Qc3 {[%clk 0:05:30]}  Bxf3 {[%clk 0:07:12]} 25. Nxf3 {[%clk 0:02:52]}  Ndxc4 {[%clk 0:07:16]} 26. h4 {[%clk 0:02:33]}  h6 {[%clk 0:05:47]} 27. Re4 {[%clk 0:02:42]}  Nd6 {[%clk 0:03:46]} 28. Re5 {[%clk 0:02:47]}  Qf6 {[%clk 0:03:47]} 29. Qxc5 {[%clk 0:02:47]}  Nf5 {[%clk 0:02:51]} 30. Qc6 {[%clk 0:02:40]}  Ng7 {[%clk 0:02:21]} 31. R5e2 {[%clk 0:01:57]}  Rc8 {[%clk 0:02:30]} 32. Qb5 {[%clk 0:01:56]}  Nd5 {[%clk 0:00:50]} 33. Qa5 {[%clk 0:01:54]}  Nc3 {[%clk 0:00:27]} 34. Rd2 {[%clk 0:01:22]}  Rfd8 {[%clk 0:00:35]} 35. Rxd8+ {[%clk 0:01:16]}  Qxd8 {[%clk 0:00:45]} 36. Qxa7 {[%clk 0:01:22]}  Qc7 {[%clk 0:00:51]} 37. Qe3 {[%clk 0:01:17]}  Kh7 {[%clk 0:00:59]} 38. Nd4 {[%clk 0:01:20]}  Qa5 {[%clk 0:00:23]} 39. Kh2 {[%clk 0:00:31]}  Qxa2 {[%clk 0:00:31]} 40. Rc1 {[%clk 0:00:23]}  e5 {[%clk 0:00:23]} 41. Nb5 {[%clk 0:00:14]}  Nf5 {[%clk 0:00:22]} 42. Nxc3 {[%clk 0:00:24]}  Qb2 {[%clk 0:00:22]} 43. Qe1 {[%clk 0:00:17]}  Nd4 {[%clk 0:00:32]} 44. Ne2 {[%clk 0:00:17]}  Rxc1 {[%clk 0:01:07]} 45. Nxc1 {[%clk 0:00:25]}  Qc2 {[%clk 0:00:36]} 46. Be4 {[%clk 0:00:30]}  Qc4 {[%clk 0:00:41]} 47. Kg2 {[%clk 0:00:37]}  Ne6 {[%clk 0:00:47]} 48. Nd3 {[%clk 0:00:42]}  Qd4 {[%clk 0:00:49]} 49. h5 {[%clk 0:00:51]}  Ng5 {[%clk 0:00:58]} 50. Bxg6+ {[%clk 0:00:59]}  Kg8 {[%clk 0:01:07]} 51. Qxe5 {[%clk 0:01:02]} 1-0


[Site "http://www.Chess.com"]

[Event "FIDE World Rapid Chess Championship 2021"]
[White "Lubczynski, Rafal"]
[Black "Ghaem Maghami, Ehsan"]
[WhiteFideId "1126091"]
[BlackFideId "12500739"]
[WhiteElo "2289"]
[BlackElo "2553"]
[Result "0-1"]
[Round "01"]
[TimeControl "900+10"]
[Date "2021.12.26"]
[WhiteClock "0:00:53"]
[BlackClock "0:02:22"]

1. d4 {[%clk 0:15:19]}  Nf6 {[%clk 0:15:18]} 2. c4 {[%clk 0:15:28]}  e6 {[%clk 0:15:26]} 3. g3 {[%clk 0:15:35]}  d5 {[%clk 0:15:26]} 4. Nf3 {[%clk 0:15:42]}  Bb4+ {[%clk 0:15:30]} 5. Bd2 {[%clk 0:15:50]}  Be7 {[%clk 0:15:35]} 6. Bg2 {[%clk 0:15:57]}  c6 {[%clk 0:15:31]} 7. Qc2 {[%clk 0:16:00]}  Nbd7 {[%clk 0:15:35]} 8. O-O {[%clk 0:16:07]}  b6 {[%clk 0:15:43]} 9. Rd1 {[%clk 0:15:08]}  Ba6 {[%clk 0:15:34]} 10. b3 {[%clk 0:14:24]}  O-O {[%clk 0:15:30]} 11. Bf4 {[%clk 0:14:21]}  Rc8 {[%clk 0:15:37]} 12. Nc3 {[%clk 0:14:22]}  dxc4 {[%clk 0:15:25]} 13. bxc4 {[%clk 0:14:31]}  Bxc4 {[%clk 0:14:30]} 14. Ne5 {[%clk 0:11:41]}  Nxe5 {[%clk 0:14:35]} 15. dxe5 {[%clk 0:11:49]}  Nd5 {[%clk 0:14:43]} 16. Ne4 {[%clk 0:08:09]}  b5 {[%clk 0:14:45]} 17. Nd6 {[%clk 0:08:11]}  Bxd6 {[%clk 0:11:33]} 18. exd6 {[%clk 0:08:18]}  Qf6 {[%clk 0:11:41]} 19. d7 {[%clk 0:07:36]}  Rcd8 {[%clk 0:09:56]} 20. Bd6 {[%clk 0:06:16]}  Rxd7 {[%clk 0:09:29]} 21. Bxf8 {[%clk 0:06:11]}  Kxf8 {[%clk 0:09:37]} 22. Qxh7 {[%clk 0:03:18]}  Bxe2 {[%clk 0:09:11]} 23. Re1 {[%clk 0:03:23]}  Bc4 {[%clk 0:08:57]} 24. Qh8+ {[%clk 0:03:29]}  Ke7 {[%clk 0:08:58]} 25. Qa8 {[%clk 0:03:11]}  Qd4 {[%clk 0:07:59]} 26. Qxc6 {[%clk 0:01:50]}  Nb4 {[%clk 0:07:50]} 27. Qe4 {[%clk 0:01:46]}  Qxe4 {[%clk 0:06:37]} 28. Bxe4 {[%clk 0:01:46]}  Nxa2 {[%clk 0:06:36]} 29. Bc6 {[%clk 0:01:16]}  Rd2 {[%clk 0:05:56]} 30. Red1 {[%clk 0:01:25]}  Rxd1+ {[%clk 0:05:53]} 31. Rxd1 {[%clk 0:01:34]}  Nb4 {[%clk 0:06:02]} 32. Rd7+ {[%clk 0:01:39]}  Kf6 {[%clk 0:06:07]} 33. Rc7 {[%clk 0:00:22]}  Nxc6 {[%clk 0:05:52]} 34. Rxc6 {[%clk 0:00:31]}  a5 {[%clk 0:06:01]} 35. f4 {[%clk 0:00:34]}  Kf5 {[%clk 0:05:18]} 36. Kf2 {[%clk 0:00:37]}  Ke4 {[%clk 0:05:04]} 37. Rc7 {[%clk 0:00:36]}  a4 {[%clk 0:04:02]} 38. Rxf7 {[%clk 0:00:15]}  a3 {[%clk 0:03:59]} 39. Ra7 {[%clk 0:00:18]}  a2 {[%clk 0:02:42]} 40. Ke1 {[%clk 0:00:26]}  Kd3 {[%clk 0:02:43]} 41. Kd1 {[%clk 0:00:29]}  Kc3 {[%clk 0:02:05]} 42. Kc1 {[%clk 0:00:38]}  b4 {[%clk 0:02:14]} 43. g4 {[%clk 0:00:44]}  b3 {[%clk 0:02:21]} 44. Ra3 {[%clk 0:00:53]}  a1=Q+ {[%clk 0:02:22]} 0-1


[Site "http://www.Chess.com"]

[Event "FIDE World Rapid Chess Championship 2021"]
[White "Korobov, Anton"]
[Black "Narayanan.S.L, "]
[WhiteFideId "14105730"]
[BlackFideId "5058422"]
[WhiteElo "2689"]
[BlackElo "2482"]
[Result "1/2-1/2"]
[Round "01"]
[TimeControl "900+10"]
[Date "2021.12.26"]
[WhiteClock "0:01:31"]
[BlackClock "0:01:39"]

1. d4 {[%clk 0:15:17]}  Nf6 {[%clk 0:15:18]} 2. c4 {[%clk 0:15:26]}  e6 {[%clk 0:15:26]} 3. Nc3 {[%clk 0:15:34]}  Bb4 {[%clk 0:15:34]} 4. e3 {[%clk 0:15:43]}  O-O {[%clk 0:15:39]} 5. Ne2 {[%clk 0:15:51]}  d5 {[%clk 0:15:21]} 6. a3 {[%clk 0:16:00]}  Be7 {[%clk 0:15:29]} 7. cxd5 {[%clk 0:16:07]}  exd5 {[%clk 0:15:37]} 8. Nf4 {[%clk 0:16:15]}  a5 {[%clk 0:14:41]} 9. Bd3 {[%clk 0:16:18]}  c6 {[%clk 0:14:49]} 10. O-O {[%clk 0:16:25]}  Na6 {[%clk 0:14:49]} 11. f3 {[%clk 0:16:24]}  Nc7 {[%clk 0:14:52]} 12. Bd2 {[%clk 0:15:18]}  c5 {[%clk 0:13:23]} 13. dxc5 {[%clk 0:14:08]}  Bxc5 {[%clk 0:13:29]} 14. Nce2 {[%clk 0:12:29]}  Bd7 {[%clk 0:09:26]} 15. Rc1 {[%clk 0:11:19]}  Ba7 {[%clk 0:08:21]} 16. Kh1 {[%clk 0:10:36]}  Ne6 {[%clk 0:08:10]} 17. g4 {[%clk 0:10:07]}  h6 {[%clk 0:06:36]} 18. Rg1 {[%clk 0:08:42]}  Re8 {[%clk 0:06:31]} 19. Nxe6 {[%clk 0:08:40]}  Rxe6 {[%clk 0:06:23]} 20. Nd4 {[%clk 0:08:41]}  Re5 {[%clk 0:05:31]} 21. Qb3 {[%clk 0:05:38]}  Qb6 {[%clk 0:03:05]} 22. Qxb6 {[%clk 0:05:45]}  Bxb6 {[%clk 0:03:14]} 23. h4 {[%clk 0:05:51]}  Ne8 {[%clk 0:02:34]} 24. Rce1 {[%clk 0:05:13]}  Nd6 {[%clk 0:02:36]} 25. Bc3 {[%clk 0:05:04]}  Rae8 {[%clk 0:01:42]} 26. Nf5 {[%clk 0:04:37]}  Nxf5 {[%clk 0:01:49]} 27. Bxf5 {[%clk 0:03:09]}  R5e7 {[%clk 0:01:58]} 28. Bxd7 {[%clk 0:02:52]}  Rxd7 {[%clk 0:02:06]} 29. Bd4 {[%clk 0:02:32]}  Bxd4 {[%clk 0:02:12]} 30. exd4 {[%clk 0:02:41]}  Rde7 {[%clk 0:02:15]} 31. Rxe7 {[%clk 0:02:40]}  Rxe7 {[%clk 0:02:23]} 32. Rc1 {[%clk 0:02:49]}  Re2 {[%clk 0:02:04]} 33. Rc8+ {[%clk 0:02:26]}  Kh7 {[%clk 0:02:13]} 34. Rc5 {[%clk 0:02:31]}  Rxb2 {[%clk 0:02:17]} 35. Rxa5 {[%clk 0:02:24]}  b5 {[%clk 0:02:17]} 36. Kg1 {[%clk 0:02:24]}  h5 {[%clk 0:01:43]} 37. gxh5 {[%clk 0:01:20]}  Kh6 {[%clk 0:01:39]} 38. Ra7 {[%clk 0:01:27]}  Rd2 {[%clk 0:01:38]} 39. Rxf7 {[%clk 0:01:26]}  Rxd4 {[%clk 0:01:45]} 40. Rb7 {[%clk 0:01:35]}  Rd3 {[%clk 0:01:35]} 41. Rxb5 {[%clk 0:01:34]}  Rxa3 {[%clk 0:01:36]} 42. Kg2 {[%clk 0:01:31]}  Kxh5 {[%clk 0:01:39]} 1/2-1/2


[Site "http://www.Chess.com"]

[Event "FIDE World Rapid Chess Championship 2021"]
[White "Kozak, Adam"]
[Black "Muradli, Mahammad"]
[WhiteFideId "753246"]
[BlackFideId "13409301"]
[WhiteElo "2552"]
[BlackElo "2285"]
[Result "0-1"]
[Round "01"]
[TimeControl "900+10"]
[Date "2021.12.26"]
[WhiteClock "0:00:05"]
[BlackClock "0:00:49"]

1. e4 {[%clk 0:15:17]}  c5 {[%clk 0:15:15]} 2. Nf3 {[%clk 0:15:24]}  d6 {[%clk 0:15:24]} 3. Bb5+ {[%clk 0:15:31]}  Bd7 {[%clk 0:15:32]} 4. Bxd7+ {[%clk 0:15:15]}  Nxd7 {[%clk 0:15:40]} 5. O-O {[%clk 0:15:19]}  Ngf6 {[%clk 0:15:48]} 6. Re1 {[%clk 0:15:13]}  e6 {[%clk 0:15:56]} 7. c3 {[%clk 0:14:24]}  Be7 {[%clk 0:16:03]} 8. d4 {[%clk 0:14:33]}  O-O {[%clk 0:16:10]} 9. e5 {[%clk 0:14:16]}  Ne8 {[%clk 0:16:18]} 10. exd6 {[%clk 0:12:53]}  Nxd6 {[%clk 0:15:33]} 11. Nbd2 {[%clk 0:12:56]}  Rc8 {[%clk 0:14:54]} 12. Nb3 {[%clk 0:12:23]}  cxd4 {[%clk 0:14:37]} 13. Nbxd4 {[%clk 0:12:22]}  Re8 {[%clk 0:14:30]} 14. Qe2 {[%clk 0:10:52]}  e5 {[%clk 0:12:07]} 15. Nb5 {[%clk 0:10:26]}  e4 {[%clk 0:12:14]} 16. Nfd4 {[%clk 0:10:13]}  Nxb5 {[%clk 0:10:50]} 17. Qxb5 {[%clk 0:09:26]}  Nc5 {[%clk 0:10:52]} 18. Rd1 {[%clk 0:03:16]}  a6 {[%clk 0:06:45]} 19. Qe2 {[%clk 0:03:24]}  Nd3 {[%clk 0:06:48]} 20. Be3 {[%clk 0:01:23]}  Bg5 {[%clk 0:06:52]} 21. Rd2 {[%clk 0:00:49]}  h6 {[%clk 0:06:40]} 22. Rad1 {[%clk 0:00:37]}  Qd5 {[%clk 0:05:57]} 23. Qg4 {[%clk 0:00:29]}  Bxe3 {[%clk 0:02:56]} 24. fxe3 {[%clk 0:00:37]}  Qg5 {[%clk 0:03:05]} 25. Qxg5 {[%clk 0:00:15]}  hxg5 {[%clk 0:03:13]} 26. Nf5 {[%clk 0:00:24]}  Rc6 {[%clk 0:00:17]} 27. Ng3 {[%clk 0:00:20]}  b5 {[%clk 0:00:18]} 28. a3 {[%clk 0:00:13]}  g6 {[%clk 0:00:15]} 29. Nxe4 {[%clk 0:00:16]}  Nxb2 {[%clk 0:00:24]} 30. Rd8 {[%clk 0:00:17]}  Nxd1 {[%clk 0:00:29]} 31. Rxe8+ {[%clk 0:00:25]}  Kg7 {[%clk 0:00:38]} 32. Nxg5 {[%clk 0:00:20]}  Rxc3 {[%clk 0:00:46]} 33. e4 {[%clk 0:00:14]}  Ne3 {[%clk 0:00:18]} 34. h3 {[%clk 0:00:12]}  Rxa3 {[%clk 0:00:14]} 35. e5 {[%clk 0:00:14]}  Ra2 {[%clk 0:00:16]} 36. g4 {[%clk 0:00:20]}  Rg2+ {[%clk 0:00:12]} 37. Kh1 {[%clk 0:00:29]}  Rf2 {[%clk 0:00:19]} 38. Re7 {[%clk 0:00:32]}  Kf8 {[%clk 0:00:13]} 39. Rb7 {[%clk 0:00:39]}  Nc4 {[%clk 0:00:15]} 40. Kg1 {[%clk 0:00:42]}  Re2 {[%clk 0:00:12]} 41. Nh7+ {[%clk 0:00:12]}  Kg7 {[%clk 0:00:18]} 42. Nf6 {[%clk 0:00:11]}  Rxe5 {[%clk 0:00:19]} 43. Nd7 {[%clk 0:00:11]}  Re7 {[%clk 0:00:28]} 44. Kf2 {[%clk 0:00:13]}  Ne5 {[%clk 0:00:32]} 45. Nc5 {[%clk 0:00:21]}  Rxb7 {[%clk 0:00:20]} 46. Nxb7 {[%clk 0:00:29]}  Kf6 {[%clk 0:00:29]} 47. Ke3 {[%clk 0:00:17]}  Kg5 {[%clk 0:00:38]} 48. Kd4 {[%clk 0:00:22]}  Nf3+ {[%clk 0:00:42]} 49. Kc5 {[%clk 0:00:11]}  Kh4 {[%clk 0:00:41]} 50. Nd6 {[%clk 0:00:14]}  Ng5 {[%clk 0:00:49]} 51. Kd4 {[%clk 0:00:05]} 0-1


[Site "http://www.Chess.com"]

[Event "FIDE World Rapid Chess Championship 2021"]
[White "Petrovskyi, Vadym"]
[Black "Dvirnyy, Danyyil"]
[WhiteFideId "14165210"]
[BlackFideId "817570"]
[WhiteElo "2282"]
[BlackElo "2550"]
[Result "1/2-1/2"]
[Round "01"]
[TimeControl "900+10"]
[Date "2021.12.26"]
[WhiteClock "0:00:30"]
[BlackClock "0:01:09"]

1. e4 {[%clk 0:15:19]}  e5 {[%clk 0:15:17]} 2. Nf3 {[%clk 0:15:27]}  Nc6 {[%clk 0:15:25]} 3. d4 {[%clk 0:15:35]}  exd4 {[%clk 0:15:31]} 4. Bc4 {[%clk 0:15:43]}  Bc5 {[%clk 0:15:03]} 5. c3 {[%clk 0:15:28]}  Nf6 {[%clk 0:15:06]} 6. cxd4 {[%clk 0:15:36]}  Bb4+ {[%clk 0:15:14]} 7. Bd2 {[%clk 0:15:44]}  Nxe4 {[%clk 0:15:13]} 8. Bxb4 {[%clk 0:15:48]}  Nxb4 {[%clk 0:15:21]} 9. Bxf7+ {[%clk 0:15:50]}  Kxf7 {[%clk 0:15:30]} 10. Qb3+ {[%clk 0:15:58]}  Kf8 {[%clk 0:15:22]} 11. Qxb4+ {[%clk 0:15:51]}  Qe7 {[%clk 0:15:30]} 12. Qxe7+ {[%clk 0:15:53]}  Kxe7 {[%clk 0:15:38]} 13. O-O {[%clk 0:15:35]}  Nf6 {[%clk 0:15:34]} 14. Re1+ {[%clk 0:15:40]}  Kd8 {[%clk 0:15:38]} 15. Nc3 {[%clk 0:15:35]}  Rf8 {[%clk 0:15:41]} 16. d5 {[%clk 0:14:22]}  b6 {[%clk 0:15:25]} 17. d6 {[%clk 0:12:31]}  cxd6 {[%clk 0:15:05]} 18. Rad1 {[%clk 0:12:31]}  Bb7 {[%clk 0:14:28]} 19. Rxd6 {[%clk 0:12:20]}  Bxf3 {[%clk 0:13:37]} 20. gxf3 {[%clk 0:12:28]}  Ne8 {[%clk 0:11:42]} 21. Rd3 {[%clk 0:12:32]}  Rc8 {[%clk 0:11:33]} 22. Nb5 {[%clk 0:12:05]}  Nf6 {[%clk 0:06:05]} 23. Nxa7 {[%clk 0:07:14]}  Rc2 {[%clk 0:05:38]} 24. a4 {[%clk 0:07:19]}  Nh5 {[%clk 0:04:36]} 25. Red1 {[%clk 0:05:58]}  Rf7 {[%clk 0:04:43]} 26. R3d2 {[%clk 0:06:00]}  Rxd2 {[%clk 0:02:49]} 27. Rxd2 {[%clk 0:06:09]}  Nf4 {[%clk 0:01:54]} 28. Nb5 {[%clk 0:05:07]}  Rf5 {[%clk 0:01:42]} 29. Nd6 {[%clk 0:03:36]}  Rg5+ {[%clk 0:01:50]} 30. Kf1 {[%clk 0:03:37]}  Rh5 {[%clk 0:01:56]} 31. Kg1 {[%clk 0:02:26]}  Kc7 {[%clk 0:01:59]} 32. Nc4 {[%clk 0:01:32]}  d5 {[%clk 0:02:06]} 33. Ne3 {[%clk 0:01:36]}  Rg5+ {[%clk 0:02:10]} 34. Kf1 {[%clk 0:01:39]}  Kc6 {[%clk 0:02:08]} 35. b4 {[%clk 0:01:35]}  Nh3 {[%clk 0:02:10]} 36. Ng2 {[%clk 0:01:31]}  Rf5 {[%clk 0:02:17]} 37. Rd3 {[%clk 0:01:30]}  g5 {[%clk 0:01:58]} 38. Rc3+ {[%clk 0:01:22]}  Kb7 {[%clk 0:01:55]} 39. b5 {[%clk 0:00:52]}  g4 {[%clk 0:01:49]} 40. Ne3 {[%clk 0:00:20]}  Rxf3 {[%clk 0:01:53]} 41. Rc2 {[%clk 0:00:29]}  h5 {[%clk 0:01:47]} 42. Nxd5 {[%clk 0:00:32]}  Rd3 {[%clk 0:01:55]} 43. Ne3 {[%clk 0:00:26]}  Ra3 {[%clk 0:02:02]} 44. Rc4 {[%clk 0:00:24]}  Ra1+ {[%clk 0:01:56]} 45. Ke2 {[%clk 0:00:31]}  Ng1+ {[%clk 0:01:47]} 46. Kd3 {[%clk 0:00:38]}  Nf3 {[%clk 0:01:55]} 47. Rf4 {[%clk 0:00:35]}  Ra3+ {[%clk 0:01:56]} 48. Kc2 {[%clk 0:00:33]}  Ra2+ {[%clk 0:01:54]} 49. Kc1 {[%clk 0:00:27]}  Ne5 {[%clk 0:01:18]} 50. Kb1 {[%clk 0:00:32]}  Rd2 {[%clk 0:00:37]} 51. Rf5 {[%clk 0:00:37]}  Nd7 {[%clk 0:00:24]} 52. Rxh5 {[%clk 0:00:31]}  Rxf2 {[%clk 0:00:31]} 53. Nxg4 {[%clk 0:00:34]}  Rf4 {[%clk 0:00:40]} 54. Ne3 {[%clk 0:00:31]}  Rxa4 {[%clk 0:00:40]} 55. Rh7 {[%clk 0:00:33]}  Kc8 {[%clk 0:00:49]} 56. Nd5 {[%clk 0:00:21]}  Rd4 {[%clk 0:00:56]} 57. Ne7+ {[%clk 0:00:28]}  Kc7 {[%clk 0:00:56]} 58. Nc6 {[%clk 0:00:36]}  Rd5 {[%clk 0:01:03]} 59. Kc2 {[%clk 0:00:29]}  Rxb5 {[%clk 0:01:09]} 60. Nb8 {[%clk 0:00:30]} 1/2-1/2


[Site "http://www.Chess.com"]

[Event "FIDE World Rapid Chess Championship 2021"]
[White "Zilka, Stepan"]
[Black "Onyshchuk, Volodymyr"]
[WhiteFideId "315303"]
[BlackFideId "14114038"]
[WhiteElo "2474"]
[BlackElo "2687"]
[Result "0-1"]
[Round "01"]
[TimeControl "900+10"]
[Date "2021.12.26"]
[WhiteClock "0:00:30"]
[BlackClock "0:02:53"]

1. d4 {[%clk 0:15:18]}  d6 {[%clk 0:15:19]} 2. e4 {[%clk 0:15:24]}  g6 {[%clk 0:15:27]} 3. Nc3 {[%clk 0:15:21]}  Bg7 {[%clk 0:15:36]} 4. Be3 {[%clk 0:15:27]}  a6 {[%clk 0:15:44]} 5. Qd2 {[%clk 0:15:13]}  b5 {[%clk 0:15:47]} 6. a4 {[%clk 0:15:09]}  b4 {[%clk 0:15:54]} 7. Na2 {[%clk 0:14:36]}  a5 {[%clk 0:16:03]} 8. c3 {[%clk 0:14:44]}  bxc3 {[%clk 0:15:54]} 9. Nxc3 {[%clk 0:14:44]}  c6 {[%clk 0:14:44]} 10. Nf3 {[%clk 0:14:36]}  Na6 {[%clk 0:14:46]} 11. Be2 {[%clk 0:14:17]}  Nb4 {[%clk 0:14:43]} 12. O-O {[%clk 0:14:08]}  Nf6 {[%clk 0:14:49]} 13. Rfd1 {[%clk 0:13:38]}  O-O {[%clk 0:14:51]} 14. h3 {[%clk 0:13:23]}  Rb8 {[%clk 0:14:28]} 15. Bh6 {[%clk 0:12:56]}  Qb6 {[%clk 0:13:56]} 16. Rac1 {[%clk 0:12:36]}  Rd8 {[%clk 0:13:45]} 17. Bxg7 {[%clk 0:12:44]}  Kxg7 {[%clk 0:13:53]} 18. Bf1 {[%clk 0:12:37]}  Be6 {[%clk 0:13:59]} 19. Qe3 {[%clk 0:12:01]}  h6 {[%clk 0:13:28]} 20. Rd2 {[%clk 0:12:04]}  Bb3 {[%clk 0:11:34]} 21. Nh2 {[%clk 0:11:12]}  c5 {[%clk 0:10:18]} 22. Nf3 {[%clk 0:09:12]}  c4 {[%clk 0:09:25]} 23. Qe1 {[%clk 0:07:31]}  Rbc8 {[%clk 0:08:12]} 24. d5 {[%clk 0:07:15]}  Nd7 {[%clk 0:07:49]} 25. e5 {[%clk 0:06:02]}  Nxe5 {[%clk 0:05:03]} 26. Nxe5 {[%clk 0:06:04]}  dxe5 {[%clk 0:05:12]} 27. Qxe5+ {[%clk 0:06:03]}  Qf6 {[%clk 0:04:43]} 28. f4 {[%clk 0:05:46]}  Qxe5 {[%clk 0:04:55]} 29. fxe5 {[%clk 0:05:54]}  Rc5 {[%clk 0:05:03]} 30. Be2 {[%clk 0:03:42]}  e6 {[%clk 0:04:15]} 31. d6 {[%clk 0:01:40]}  Rxe5 {[%clk 0:04:15]} 32. Nb5 {[%clk 0:01:38]}  Bxa4 {[%clk 0:04:00]} 33. Nc7 {[%clk 0:01:35]}  Bb3 {[%clk 0:02:48]} 34. d7 {[%clk 0:00:44]}  Nd5 {[%clk 0:02:29]} 35. Bxc4 {[%clk 0:00:33]}  Bxc4 {[%clk 0:02:37]} 36. Rxc4 {[%clk 0:00:39]}  Rxd7 {[%clk 0:02:44]} 37. Ne8+ {[%clk 0:00:35]}  Kf8 {[%clk 0:02:52]} 38. Nc7 {[%clk 0:00:30]}  Rxc7 {[%clk 0:02:53]} 0-1


[Site "http://www.Chess.com"]

[Event "FIDE World Rapid Chess Championship 2021"]
[White "Parligras, Mircea-Emilian"]
[Black "Sankalp, Gupta"]
[WhiteFideId "1204297"]
[BlackFideId "5097010"]
[WhiteElo "2550"]
[BlackElo "2266"]
[Result "1/2-1/2"]
[Round "01"]
[TimeControl "900+10"]
[Date "2021.12.26"]
[WhiteClock "0:09:38"]
[BlackClock "0:13:05"]

1. d4 {[%clk 0:15:18]}  d5 {[%clk 0:15:19]} 2. c4 {[%clk 0:15:26]}  dxc4 {[%clk 0:15:28]} 3. e3 {[%clk 0:15:34]}  Nf6 {[%clk 0:15:36]} 4. Bxc4 {[%clk 0:15:42]}  e6 {[%clk 0:15:45]} 5. Nf3 {[%clk 0:15:50]}  a6 {[%clk 0:15:54]} 6. O-O {[%clk 0:15:56]}  c5 {[%clk 0:16:02]} 7. dxc5 {[%clk 0:16:00]}  Bxc5 {[%clk 0:16:04]} 8. Qxd8+ {[%clk 0:16:07]}  Kxd8 {[%clk 0:16:12]} 9. Be2 {[%clk 0:16:05]}  Ke7 {[%clk 0:16:12]} 10. Nbd2 {[%clk 0:15:49]}  Bd7 {[%clk 0:15:22]} 11. Ne5 {[%clk 0:14:47]}  Bb5 {[%clk 0:15:13]} 12. Nec4 {[%clk 0:13:58]}  Nc6 {[%clk 0:14:31]} 13. Nb3 {[%clk 0:13:23]}  Ba7 {[%clk 0:14:00]} 14. a4 {[%clk 0:13:26]}  Bxc4 {[%clk 0:14:08]} 15. Bxc4 {[%clk 0:13:35]}  Rac8 {[%clk 0:13:52]} 16. Bd2 {[%clk 0:12:53]}  Ne4 {[%clk 0:13:57]} 17. Rfd1 {[%clk 0:12:13]}  Nxd2 {[%clk 0:13:00]} 18. Rxd2 {[%clk 0:12:16]}  Rhd8 {[%clk 0:12:50]} 19. Rxd8 {[%clk 0:11:56]}  Kxd8 {[%clk 0:12:56]} 20. Be2 {[%clk 0:11:09]}  Ne5 {[%clk 0:12:59]} 21. Rc1 {[%clk 0:09:21]}  Rxc1+ {[%clk 0:13:05]} 22. Nxc1 {[%clk 0:09:30]}  Kc7 {[%clk 0:13:05]} 23. Nd3 {[%clk 0:09:38]} 1/2-1/2


[Site "http://www.Chess.com"]